fUSD/lending_fUSD_20250207
["ID","MTS","AMOUNT","RATE_DAILY","PERIOD"]
[352156630,1738962680153,-2847.62,0.00016849,2]
[352156631,1738962680163,-500.0,0.00016849,2]
[352156632,1738962680174,-2565.88,0.00016849,2]
[352156633,1738962680184,-1991.9,0.00016849,2]
[352156634,1738962680194,-500.0,0.00016849,2]
[352156635,1738962680205,-3775.86,0.00016849,2]
[352156636,1738962680215,-500.0,0.00016849,2]
[352156637,1738962680225,-500.0,0.00016849,2]
[352156638,1738962680236,-500.0,0.00016849,2]
[352156639,1738962680246,-819.29,0.00016849,2]
[352156640,1738962680256,-1824.01,0.00016849,2]
[352156641,1738962680267,-500.0,0.00016849,2]
[352156642,1738962680277,-755.93,0.00016849,2]
[352156643,1738962680288,-500.0,0.00016849,2]
[352156644,1738962680298,-325.90694609,0.00016849,2]
[352156645,1738962681107,-174.09305391,0.00016849,2]
[352156646,1738962681117,-500.0,0.00016849,2]
[352156647,1738962681126,-1141.88169503,0.00016849,2]
[352156648,1738962681146,-302.5407008,0.00016849,2]
[352156649,1738962681158,-505.80281813,0.00016849,2]
[352156650,1738962681179,-353.92478604,0.00016849,2]
[352156651,1738962681189,-612.0752143,0.00016849,2]
[352156652,1738962681203,-324.060861,0.00016849,2]
[352156653,1738962681635,-355.16517183,0.00016438,2]
[352156654,1738962682155,-2100.16482817,0.00016438,2]
[352156655,1738962682165,-500.0,0.00016438,2]
[352156656,1738962682174,-500.0,0.00016438,2]
[352156657,1738962682183,-500.0,0.00016438,2]
[352156658,1738962682192,-500.0,0.00016438,2]
[352156659,1738962682202,-2455.33,0.00016575,2]
[352156660,1738962682211,-500.0,0.00016575,2]
[352156661,1738962682220,-500.0,0.00016575,2]
[352156662,1738962682230,-500.0,0.00016575,2]
[352156663,1738962682240,-500.0,0.00016712,2]
[352156664,1738962682249,-507.55351398,0.00016712,2]
[352156665,1738962682258,-2246.98,0.00016712,2]
[352156666,1738962682267,-2042.15405651,0.00016712,2]
[352156667,1738962682279,-413.17594349,0.00016712,2]
[352156668,1738962682292,-500.0,0.00016712,2]
[352156669,1738962682301,-1887.3439247,0.00016849,2]
[352156670,1738962682311,-917.02,0.00016849,2]
[352156671,1738962682321,-1950.78,0.00016849,2]
[352156672,1738962682330,-65.26913859,0.00016849,2]
[352156673,1738962682341,-282.48529589,0.00016849,2]
[352156674,1738962682353,-1122.3140541,0.00016849,2]
[352156675,1738962682364,-172.12151142,0.00016849,2]
[352156676,1738962682373,-1442.56,0.00016849,2]
[352156677,1738962682383,-863.64,0.00016849,2]
[352156678,1738962682393,-820.85,0.00016849,2]
[352156679,1738962682402,-500.0,0.00016849,2]
[352156680,1738962682411,-981.84,0.00016849,2]
[352156681,1738962682420,-2502.4,0.00016849,2]
[352156682,1738962682430,-2781.11,0.00016849,2]
[352156683,1738962682439,-3993.83,0.00016849,2]
[352156684,1738962682448,-500.0,0.00016849,2]
[352156685,1738962682457,-500.0,0.00016849,2]
[352156686,1738962682467,-500.0,0.00016849,2]
[352156687,1738962682476,-500.0,0.00016849,2]
[352156688,1738962682485,-4786.09,0.00016849,2]
[352156689,1738962682495,-1539.25,0.00016849,2]
[352156690,1738962682509,-2091.15,0.00016849,2]
[352156691,1738962682518,-1588.23,0.00016849,2]
[352156692,1738962682528,-500.0,0.00016849,2]
[352156693,1738962682539,-500.0,0.00016849,2]
[352156694,1738962682550,-503.18,0.00016849,2]
[352156695,1738962682560,-573.32337258,0.00016849,2]
[352156696,1738962682569,-500.0,0.00016849,2]
[352156697,1738962682581,-500.0,0.00016849,2]
[352156698,1738962682591,-1467.66,0.00016849,2]
[352156699,1738962682601,-500.0,0.00016849,2]
[352156700,1738962682611,-500.0,0.00016849,2]
[352156701,1738962682620,-500.0,0.00016849,2]
[352156702,1738962682630,-741.46,0.00016849,2]
[352156703,1738962682639,-475.34473607,0.00016849,2]
[352156704,1738962682648,-3734.45,0.00016849,2]
[352156705,1738962682658,-500.0,0.00016849,2]
[352156706,1738962682668,-500.0,0.00016849,2]
[352156707,1738962682678,-3371.34,0.00016849,2]
[352156708,1738962682688,-3320.99,0.00016849,2]
[352156709,1738962682698,-500.0,0.00016849,2]
[352156710,1738962682708,-730.54,0.00016849,2]
[352156711,1738962682718,-500.0,0.00016849,2]
[352156712,1738962682728,-2116.76,0.00016849,2]
[352156713,1738962682738,-500.0,0.00016849,2]
[352156714,1738962682748,-2738.06,0.00016849,2]
[352156715,1738962682757,-500.0,0.00016849,2]
[352156716,1738962682768,-2193.5,0.00016849,2]
[352156717,1738962682778,-500.0,0.00016849,2]
[352156718,1738962682789,-2486.56,0.00016849,2]
[352156719,1738962682799,-530.02,0.00016849,2]
[352156720,1738962682808,-812.9,0.00016849,2]
[352156721,1738962682818,-500.0,0.00016849,2]
[352156722,1738962682828,-500.0,0.00016849,2]
[352156723,1738962682837,-3401.34,0.00016849,2]
[352156724,1738962682847,-3408.18,0.00016849,2]
[352156725,1738962682857,-1441.02,0.00016849,2]
[352156726,1738962682867,-3293.05,0.00016849,2]
[352156727,1738962682876,-1752.86,0.00016849,2]
[352156728,1738962682885,-1698.46,0.00016849,2]
[352156729,1738962682895,-2311.16,0.00016849,2]
[352156730,1738962682904,-4044.44,0.00016849,2]
[352156731,1738962682914,-500.0,0.00016849,2]
[352156732,1738962682925,-1009.6,0.00016849,2]
[352156733,1738962682935,-500.0,0.00016849,2]
[352156734,1738962682945,-2648.95,0.00016849,2]
[352156735,1738962682954,-500.0,0.00016849,2]
[352156736,1738962682964,-500.0,0.00016849,2]
[352156737,1738962682974,-1442.73,0.00016849,2]
[352156738,1738962682985,-3003.44,0.00016849,2]
[352156739,1738962682994,-3806.73,0.00016849,2]
[352156740,1738962683004,-920.94,0.00016849,2]
[352156741,1738962683013,-500.0,0.00016849,2]
[352156742,1738962683022,-521.19,0.00016849,2]
[352156743,1738962683032,-500.0,0.00016849,2]
[352156744,1738962683043,-2631.35,0.00016849,2]
[352156745,1738962683052,-12111.21,0.00016849,2]
[352156746,1738962683063,-1218.95,0.00016849,2]
[352156747,1738962683073,-2668.19,0.00016849,2]
[352156748,1738962683082,-500.0,0.00016849,2]
[352156749,1738962683092,-500.0,0.00016849,2]
[352156750,1738962683101,-500.0,0.00016849,2]
[352156751,1738962683111,-500.0,0.00016849,2]
[352156752,1738962683121,-2295.73,0.00016849,2]
[352156753,1738962683132,-1662.14253818,0.00016849,2]
[352156754,1738962683150,-1899.99999995,0.00016849,2]
[352156755,1738962683162,-1646.52746187,0.00016849,2]
[352156756,1738962683172,-2836.9,0.00016849,2]
[352156757,1738962683181,-500.0,0.00016849,2]
[352156758,1738962683193,-1023.23253813,0.00016849,2]
[352156759,1738962683232,-500.0,0.00016575,2]
[352156760,1738962683243,-4177.41746187,0.00016849,2]
[352156761,1738962683252,-1734.65,0.00016849,2]
[352156762,1738962683268,-111.86085224,0.00016849,2]
[352156763,1738962683319,-367.03000001,0.00016849,2]
[352156764,1738962683334,-4301.61914775,0.00016849,2]
[352156765,1738962683344,-5622.28,0.00016849,2]
[352156766,1738962683354,-2366.38,0.00016849,2]
[352156767,1738962683363,-562.05,0.00016849,2]
[352156768,1738962683373,-500.0,0.00016849,2]
[352156769,1738962683383,-2714.22,0.00016849,2]
[352156770,1738962683392,-3938.7,0.00016849,2]
[352156771,1738962683402,-2126.29,0.00016849,2]
[352156772,1738962683412,-500.0,0.00016849,2]
[352156773,1738962683421,-500.0,0.00016849,2]
[352156774,1738962683430,-2025.73,0.00016849,2]
[352156775,1738962683439,-254.59556122,0.00016849,2]
[352156776,1738962683449,-2799.02,0.00016849,2]
[352156777,1738962683458,-5530.94,0.00016849,2]
[352156778,1738962683468,-500.0,0.00016849,2]
[352156779,1738962683478,-695.46,0.00016849,2]
[352156780,1738962683488,-500.0,0.00016849,2]
[352156781,1738962683501,-2881.03,0.00016849,2]
[352156782,1738962683513,-1492.17,0.00016849,2]
[352156783,1738962683523,-500.0,0.00016849,2]
[352156784,1738962683534,-500.0,0.00016849,2]
[352156785,1738962683555,-2366.72,0.00016849,2]
[352156786,1738962683570,-500.0,0.00016849,2]
[352156787,1738962683587,-2170.42,0.00016849,2]
[352156788,1738962683598,-8064.45,0.00016849,2]
[352156789,1738962683607,-1115.7,0.00016849,2]
[352156790,1738962683617,-500.0,0.00016849,2]
[352156791,1738962683626,-4938.51,0.00016849,2]
[352156792,1738962683636,-500.0,0.00016849,2]
[352156793,1738962683645,-500.0,0.00016849,2]
[352156794,1738962683655,-500.0,0.00016849,2]
[352156795,1738962683665,-1624.09,0.00016849,2]
[352156796,1738962683674,-500.0,0.00016849,2]
[352156797,1738962683683,-5363.05,0.00016849,2]
[352156798,1738962683693,-500.0,0.00016849,2]
[352156799,1738962683702,-541.05,0.00016849,2]
[352156800,1738962683711,-500.0,0.00016849,2]
[352156801,1738962683721,-557.25,0.00016849,2]
[352156802,1738962683730,-6480.67,0.00016849,2]
[352156803,1738962683740,-500.2,0.00016849,2]
[352156804,1738962683749,-14758.62,0.00016849,2]
[352156805,1738962683758,-2117.93,0.00016849,2]
[352156806,1738962683768,-500.0,0.00016849,2]
[352156807,1738962683778,-865.01,0.00016849,2]
[352156808,1738962683790,-6536.68,0.00016849,2]
[352156809,1738962683800,-500.0,0.00016849,2]
[352156810,1738962683809,-1885.25,0.00016849,2]
[352156811,1738962683819,-1529.17,0.00016849,2]
[352156812,1738962683829,-500.0,0.00016849,2]
[352156813,1738962683839,-756.9,0.00016849,2]
[352156814,1738962683848,-824.07,0.00016849,2]
[352156815,1738962683857,-500.0,0.00016849,2]
[352156816,1738962683867,-348.32755305,0.00016849,2]
[352156817,1738962683877,-500.0,0.00016849,2]
[352156818,1738962684088,-500.0,0.00016849,2]
[352156819,1738962684097,-3719.42,0.00016849,2]
[352156820,1738962684107,-500.0,0.00016849,2]
[352156821,1738962684117,-500.0,0.00016849,2]
[352156822,1738962684127,-4214.62,0.00016849,2]
[352156823,1738962684137,-914.17,0.00016849,2]
[352156824,1738962684146,-1362.63,0.00016849,2]
[352156825,1738962684155,-1213.9,0.00016849,2]
[352156826,1738962684164,-500.0,0.00016849,2]
[352156827,1738962684173,-1096.27,0.00016849,2]
[352156828,1738962684183,-500.0,0.00016849,2]
[352156829,1738962684193,-1367.78,0.00016849,2]
[352156830,1738962684202,-4063.18,0.00016849,2]
[352156831,1738962684211,-874.4,0.00016849,2]
[352156832,1738962684221,-500.0,0.00016849,2]
[352156833,1738962684231,-500.0,0.00016849,2]
[352156834,1738962684240,-649.72,0.00016849,2]
[352156835,1738962684249,-4370.47,0.00016849,2]
[352156836,1738962684259,-500.0,0.00016849,2]
[352156837,1738962684269,-500.0,0.00016849,2]
[352156838,1738962684279,-927.91,0.00016849,2]
[352156839,1738962684289,-5345.59,0.00016849,2]
[352156840,1738962684299,-500.0,0.00016849,2]
[352156841,1738962684309,-2246.98,0.00016849,2]
[352156842,1738962684318,-2455.33,0.00016849,2]
[352156843,1738962684328,-500.0,0.00016849,2]
[352156844,1738962684337,-500.0,0.00016873,2]
[352156845,1738962684347,-500.0,0.00016873,2]
[352156846,1738962684355,-500.0,0.00016873,2]
[352156847,1738962684365,-200.0,0.00016879,2]
[352156848,1738962684374,-200.0,0.00016879,2]
[352156849,1738962684383,-160.01520833,0.00016886,2]
[352156850,1738962684393,-154.84147953,0.00016886,2]
[352156851,1738962684402,-284.96253,0.00016888,7]
[352156852,1738962684411,-150.0,0.00016897,2]
[352156853,1738962684420,-150.45,0.00016897,2]
[352156854,1738962684429,-284.644,0.00016897,2]
[352156855,1738962684439,-1290.42600197,0.000169,2]
[352156856,1738962684448,-1290.42600194,0.000169,2]
[352156857,1738962684458,-1290.42600194,0.000169,2]
[352156858,1738962684467,-1290.42600194,0.000169,2]
[352156859,1738962684477,-1290.42600194,0.000169,2]
[352156860,1738962684487,-1290.42600194,0.00016901,2]
[352156861,1738962684501,-500.0,0.00016904,2]
[352156862,1738962684513,-1290.42600194,0.00016932,2]
[352156863,1738962684523,-150.56,0.00016938,2]
[352156864,1738962684532,-1290.42600194,0.00016962,2]
[352156865,1738962684544,-151.0,0.00016974,2]
[352156866,1738962684554,-160.448173,0.00016974,2]
[352156867,1738962684563,-160.448173,0.00016974,2]
[352156868,1738962684575,-405.317945,0.00016974,2]
[352156869,1738962684585,-405.317945,0.00016974,2]
[352156870,1738962684594,-151.0,0.00016974,2]
[352156871,1738962684604,-151.0,0.00016974,2]
[352156872,1738962684613,-554.518408,0.00016974,2]
[352156873,1738962684623,-554.518408,0.00016974,2]
[352156874,1738962684632,-302.563588,0.00016974,2]
[352156875,1738962684642,-302.563588,0.00016974,2]
[352156876,1738962684652,-2000.0,0.00016985,2]
[352156877,1738962684662,-849.51,0.00016985,2]
[352156878,1738962684672,-849.51,0.00016985,2]
[352156879,1738962684682,-849.51,0.00016985,2]
[352156880,1738962684691,-849.51,0.00016985,2]
[352156881,1738962684701,-849.51,0.00016985,2]
[352156882,1738962684710,-849.51,0.00016985,2]
[352156883,1738962684720,-849.70060542,0.00016985,2]
[352156884,1738962684730,-541.23732173,0.00016986,3]
[352156885,1738962684740,-726.28661474,0.00016986,2]
[352156886,1738962684750,-2471762.92131469,0.00016986,3]
[352156887,1738962684765,-2450.59284456,0.00016986,3]
[352156888,1738962684776,-799.4,0.00016986,3]
[352156889,1738962684789,-3003.0,0.00016986,3]
[352156890,1738962684800,-10813.44397206,0.00016986,3]
[352156891,1738962685203,-500.0,0.00016438,2]
[352156892,1738962685212,-472.01,0.00016438,2]
[352156893,1738962685224,-27.99,0.00016438,2]
[352156894,1738962685233,-455.9104615,0.00016575,2]
[352156895,1738962685243,-686.0995385,0.00016986,3]
[352156896,1738962685254,-57593.40000002,0.00016986,3]
[352156897,1738962685265,-479.52905,0.00016986,3]
[352156898,1738962685285,-869.30755836,0.00016986,3]
[352156899,1738962685296,-1759.35999998,0.00016986,3]
[352156900,1738962685307,-2124.4700145,0.00016986,3]
[352156901,1738962685318,-2429.625,0.00016986,3]
[352156902,1738962685329,-2422.0,0.00016986,3]
[352156903,1738962685339,-2715.868934,0.00016986,3]
[352156904,1738962685350,-516.68288119,0.00016986,3]
[352156905,1738962685361,-3234.0430226,0.00016986,3]
[352156906,1738962685377,-253.77725,0.00016986,3]
[352156907,1738962685388,-4850.0,0.00016986,3]
[352156908,1738962685400,-15154.19434664,0.00016986,3]
[352156909,1738962685416,-682.1928,0.00016986,3]
[352156910,1738962685873,-500.0,0.00016438,2]
[352156911,1738962685884,-500.0,0.00016438,2]
[352156912,1738962685893,-500.0,0.00016438,2]
[352156913,1738962685902,-500.0,0.00016438,2]
[352156914,1738962685912,-500.0,0.00016438,2]
[352156915,1738962685921,-500.0,0.00016575,2]
[352156916,1738962685931,-500.0,0.00016575,2]
[352156917,1738962685940,-1391.32569443,0.00016986,3]
[352156918,1738962685976,-557.6099985,0.00016986,3]
[352156919,1738962685989,-7094.66754523,0.00016986,3]
[352156920,1738962686001,-3144.6409471,0.00016986,3]
[352156921,1738962686019,-500.0,0.00016575,2]
[352156922,1738962686028,-33529.0025928,0.00016986,3]
[352156923,1738962686041,-337.8077,0.00016986,3]
[352156924,1738962686061,-348.95445286,0.00016575,2]
[352156925,1738962686072,-151.04554714,0.00016575,2]
[352156926,1738962686081,-1908.47956544,0.00016986,3]
[352156927,1738962686092,-373.78320873,0.00016986,3]
[352156928,1738962686103,-6852.06542179,0.00016986,3]
[352156929,1738962782515,1000.14833095,0.0002,120]
[352156932,1738963725216,153.1133762,0.0002,120]
[352156963,1738963831743,-893.2868,8.699e-05,2]
[352156964,1738963831752,-150.0,8.835e-05,2]
[352156965,1738963831762,-2298.81319,8.836e-05,2]
[352156966,1738963831774,-534.159991,8.836e-05,2]
[352156967,1738963831785,-1945.55950178,8.836e-05,2]
[352156968,1738963831830,-2468.93371722,8.836e-05,2]
[352156969,1738963831841,-1416.98622018,8.836e-05,2]
[352156970,1738963831855,-1137.29776236,8.836e-05,2]
[352156971,1738963831880,-413.21193929,8.836e-05,2]
[352156972,1738963831892,-2063.52084559,8.836e-05,2]
[352156973,1738963831905,-1345.39273258,8.836e-05,2]
[352156974,1738963831915,-6615.52307344,8.836e-05,2]
[352156975,1738963831929,-614.72573488,8.836e-05,2]
[352156976,1738963832011,-941.96454601,8.836e-05,2]
[352156977,1738963832023,-6049.60144567,8.836e-05,2]
[352156978,1738963832033,-2124.4857,8.836e-05,2]
[352156979,1738963832043,-93437.49120325,8.836e-05,2]
[352156980,1738963832056,-44144.43569675,8.836e-05,2]
[352156981,1738963832066,-605.80370777,8.836e-05,2]
[352156982,1738963832075,-2500.0,8.851e-05,2]
[352156983,1738963832084,-12224.5427,8.973e-05,2]
[352156984,1738963832093,-150.0,9.718e-05,2]
[352156985,1738963832102,-500.74245682,9.973e-05,2]
[352156986,1738963832112,-500.0,9.999e-05,2]
[352156987,1738963832122,-500.0,9.999e-05,2]
[352156988,1738963832131,-500.0,9.999e-05,2]
[352156989,1738963832141,-500.0,9.999e-05,2]
[352156990,1738963832150,-500.0,9.999e-05,2]
[352156991,1738963832160,-500.0,9.999e-05,2]
[352156992,1738963832171,-500.0,9.999e-05,2]
[352156993,1738963832181,-500.0,9.999e-05,2]
[352156994,1738963832191,-403.45278246,9.999e-05,2]
[352156995,1738963832201,-500.0,9.999e-05,2]
[352156996,1738963832211,-500.0,9.999e-05,2]
[352156997,1738963832220,-507.28341231,9.999e-05,2]
[352156998,1738963832230,-500.0,9.999e-05,2]
[352156999,1738963832239,-517654.21645089,0.0001,2]
[352157000,1738963832252,-163960.19167007,0.0001,2]
[352157001,1738963832293,-73957.55181773,0.0001,2]
[352157002,1738963832304,-4328.49783827,0.0001,2]
[352157071,1738963837618,-986.67613697,0.0001,2]
[352157072,1738963837630,-941.57868834,0.0001,2]
[352157073,1738963837642,-554.28896926,0.0001,2]
[352157074,1738963837653,-691.22352886,0.0001,2]
[352157075,1738963837665,-2548.74647114,0.0001,2]
[352157076,1738963837695,-257.52246697,0.0001,2]
[352157077,1738963837706,-860.27959036,0.0001,2]
[352157078,1738963837717,-50200.0,0.0001,2]
[352157079,1738963837728,-18435.39607455,0.0001,2]
[352157080,1738963837739,-1227.21394694,0.0001,2]
[352157081,1738963837852,-8390.41828939,0.0001,2]
[352157082,1738963837868,-316.2698799,0.0001,2]
[352157083,1738963837880,-27061.01938649,0.0001,2]
[352157084,1738963837892,-11936.5,0.0001,2]
[352157085,1738963837904,-2893.74210755,0.0001,2]
[352157086,1738963837915,-1533.348258,0.0001,2]
[352157087,1738963837929,-10453.75048581,0.0001,2]
[352157088,1738963837941,-4849.99996427,0.0001,2]
[352157089,1738963837952,-8277.934682,0.0001,2]
[352157092,1738963837973,-692.74999987,0.0001,2]
[352157247,1738963839614,-285.31500001,0.0001,2]
[352157249,1738963839626,-983.21754107,0.0001,2]
[352157251,1738963839637,-2467.30921759,0.0001,2]
[352157253,1738963839649,-3433.20844868,0.0001,2]
[352157257,1738963839672,-930.1865022,0.0001,2]
[352157263,1738963839721,-2691187.71293521,0.0001,2]
[352157265,1738963839732,-625.389765,0.0001,2]
[352157267,1738963839744,-6136.93060007,0.0001,2]
[352157270,1738963839755,-35684.50328488,0.0001,2]
[352157273,1738963839780,-25470.0,0.0001,2]
[352157276,1738963839796,-1105.41246176,0.0001,2]
[352157278,1738963839807,-7168.12994413,0.0001,2]
[352157280,1738963839818,-4282.42235308,0.0001,2]
[352157283,1738963839833,-396.21290622,0.0001,2]
[352157285,1738963839846,-2288.91045091,0.0001,2]
[352157288,1738963839857,-721.24525557,0.0001,2]
[352157290,1738963839872,-463.95250134,0.0001,2]
[352157292,1738963839884,-8843.24115033,0.0001,2]
[352157296,1738963839910,-708.64449593,0.0001,2]
[352157298,1738963839921,-305.7295104,0.0001,2]
[352157300,1738963839934,-652.90115603,0.0001,2]
[352157302,1738963839947,-1919.76775522,0.0001,2]
[352157308,1738963839999,-343.87252856,0.0001,2]
[352157310,1738963840010,-1101.54005076,0.0001,2]
[352157313,1738963840022,-10999.87625567,0.0001,2]
[352157696,1738963843793,-944795.85003612,0.0001,2]
[352157713,1738963843952,-800.069992,0.0001,2]
[352157715,1738963843966,-292103.01634703,0.0001,2]
[352157724,1738963844044,-260125.80915084,0.0001,2]
[352157734,1738963844135,-534587.37586393,0.0001,2]
[352157889,1738963845689,-1364.749998,0.0001,2]
[352157892,1738963845706,-241838.16773959,0.0001,2]
[352157894,1738963845718,-972.20517488,0.0001,2]
[352157903,1738963845790,-3307.8,0.0001,2]
[352157906,1738963845813,-500.0,0.0001,2]
[352157908,1738963845825,-1901.1793104,0.0001,2]
[352157911,1738963845842,-7183.83918807,0.0001,2]
[352157913,1738963845857,-973.91200023,0.0001,2]
[352158239,1738965032099,-1299.96,8.219e-05,2]
[352158240,1738965032109,-1816.97386877,8.973e-05,2]
[352158241,1738965032121,-492.79853393,8.973e-05,2]
[352158242,1738965032134,-2690.2275973,8.973e-05,2]
[352158243,1738965032143,-150.0,9e-05,2]
[352158244,1738965032153,-150.0,9e-05,2]
[352158245,1738965032163,-1500.0,9.651e-05,2]
[352158246,1738965032175,-3333.39,9.8e-05,2]
[352158247,1738965032186,-175.261,9.8e-05,2]
[352158248,1738965032196,-23900.0,9.863e-05,2]
[352158249,1738965032206,-590.62,9.966e-05,2]
[352158250,1738965032215,-150.0,9.973e-05,2]
[352158251,1738965032226,-4534.0,9.973e-05,2]
[352158252,1738965032236,-500.0,9.999e-05,2]
[352158253,1738965032247,-238.86469191,9.999e-05,2]
[352158254,1738965032258,-273.54142036,9.999e-05,2]
[352158255,1738965032267,-317.91738154,9.999e-05,2]
[352158256,1738965032289,-182.08261846,9.999e-05,2]
[352158257,1738965032299,-500.0,9.999e-05,2]
[352158258,1738965032309,-500.0,9.999e-05,2]
[352158259,1738965032318,-124.71645425,9.999e-05,2]
[352158282,1738965037729,-264.79482413,9.999e-05,2]
[352158283,1738965037843,-110.48872162,9.999e-05,2]
[352158284,1738965037852,-500.0,9.999e-05,2]
[352158285,1738965037862,-384.62231372,9.999e-05,2]
[352158286,1738965037958,-115.37768628,9.999e-05,2]
[352158287,1738965037967,-500.0,9.999e-05,2]
[352158288,1738965037976,-500.0,9.999e-05,2]
[352158289,1738965037985,-500.0,9.999e-05,2]
[352158290,1738965037994,-500.0,9.999e-05,2]
[352158291,1738965038004,-500.0,9.999e-05,2]
[352158292,1738965038013,-500.0,9.999e-05,2]
[352158293,1738965038023,-500.0,9.999e-05,2]
[352158294,1738965038033,-500.0,9.999e-05,2]
[352158295,1738965038043,-500.0,9.999e-05,2]
[352158296,1738965038052,-500.0,9.999e-05,2]
[352158297,1738965038062,-500.0,9.999e-05,2]
[352158298,1738965038071,-500.0,9.999e-05,2]
[352158299,1738965038080,-500.0,9.999e-05,2]
[352158301,1738965038090,-500.0,9.999e-05,2]
[352158303,1738965038099,-500.0,9.999e-05,2]
[352158305,1738965038108,-500.0,9.999e-05,2]
[352158306,1738965038117,-500.0,9.999e-05,2]
[352158307,1738965038126,-189.90549782,9.999e-05,2]
[352158308,1738965038135,-500.0,9.999e-05,2]
[352158309,1738965038145,-500.0,9.999e-05,2]
[352158310,1738965038155,-500.0,9.999e-05,2]
[352158311,1738965038164,-500.0,9.999e-05,2]
[352158312,1738965038173,-500.0,9.999e-05,2]
[352158314,1738965038182,-152.31467036,9.999e-05,2]
[352158316,1738965038192,-500.0,9.999e-05,2]
[352158318,1738965038202,-500.0,9.999e-05,2]
[352158320,1738965038211,-500.0,9.999e-05,2]
[352158322,1738965038221,-500.0,9.999e-05,2]
[352158324,1738965038230,-500.0,9.999e-05,2]
[352158326,1738965038240,-500.0,9.999e-05,2]
[352158328,1738965038253,-500.0,9.999e-05,2]
[352158330,1738965038262,-500.0,9.999e-05,2]
[352158332,1738965038272,-500.0,9.999e-05,2]
[352158334,1738965038282,-500.0,9.999e-05,2]
[352158336,1738965038292,-500.0,9.999e-05,2]
[352158338,1738965038301,-499.99999999,9.999e-05,2]
[352158340,1738965038310,-500.0,9.999e-05,2]
[352158342,1738965038320,-4442548.73006328,0.0001,2]
[352158500,1738965039804,-1435.61440657,0.0001,2]
[352158502,1738965039816,-486.991505,0.0001,2]
[352158525,1738965040032,-1084.24,0.0001,2]
[352158528,1738965040043,-280.42189841,0.0001,2]
[352158551,1738965040257,-5209.945048,0.0001,2]
[352158842,1738965043015,-540.0000003,0.0001,2]
[352158856,1738965043118,-4325.99470946,0.0001,2]
[352158878,1738965043333,-2376.56104515,0.0001,2]
[352158880,1738965043346,-380.85094129,0.0001,2]
[352159145,1738965045899,-740.40033588,0.0001,2]
[352159151,1738965045929,-53842.92697279,0.0001,2]
[352159171,1738965046120,-3861.66746015,0.0001,2]
[352159173,1738965046134,-14686.415795,0.0001,2]
[352159176,1738965046145,-27162.01585904,0.0001,2]
[352159183,1738965046207,-666760.9934205,0.0001,2]
[352159185,1738965046218,-3656.54060947,0.0001,2]
[352159187,1738965046229,-572.45108776,0.0001,2]
[352159200,1738965046772,-1729.24609705,0.0001,2]
[352159201,1738965046783,-728.3499875,0.0001,2]
[352159202,1738965046823,-3326.8,0.0001,2]
[352159203,1738965046835,-42160.72550566,0.0001,2]
[352159209,1738966129745,-1320.81,8.219e-05,2]
[352159210,1738966129775,-150.0,8.698e-05,2]
[352159211,1738966129799,-300.0,8.698e-05,2]
[352159212,1738966129820,-2540.8646,8.699e-05,2]
[352159213,1738966129842,-1265.4695,8.699e-05,2]
[352159214,1738966129864,-4422.8559,8.699e-05,2]
[352159215,1738966135903,-10000.0,8.699e-05,2]
[352159216,1738966160934,-2540.7525,8.699e-05,2]
[352159217,1738966160957,-1503.9,8.702e-05,2]
[352159218,1738966160978,-4292.9916,8.836e-05,2]
[352159219,1738966160999,-500.0,8.851e-05,2]
[352159220,1738966161021,-905.4395,8.851e-05,2]
[352159221,1738966161043,-256.9164,8.851e-05,2]
[352159222,1738966166496,-2243.0836,8.851e-05,2]
[352159223,1738966166518,-463.93,8.908e-05,2]
[352159224,1738966166541,-7292.9864,8.972e-05,2]